[Event "13th Palmanova Festival A 2024"]
[Site "Palmanova"]
[Date "2024.12.27"]
[Round "1.1"]
[White "Martinovici, Ilia"]
[Black "Shefer, Uri"]
[Result "1-0"]
[ECO "E04"]
[WhiteElo "2473"]
[BlackElo "2210"]
[Annotator "TA"]
[PlyCount "81"]
[EventDate "2024.12.27"]
[EventCountry "ITA"]
[SourceTitle "playchess.com"]
[Source "ChessBase"]
[SourceQuality "1"]
[TimeControl "6000+30"]

{[%evp 14,81,19,12,10,11,18,17,29,14,29,-14,-17,-11,12,6,65,67,65,65,70,72,68,58,59,63,60,70,70,75,105,108,106,104,127,127,156,152,200,195,161,135,251,239,338,338,404,395,554,547,543,556,575,552,562,550,718,721,824,811,977,983,1433,1321,1607,1616,2902,1727,29978,29972]} 1. d4 {[%emt 0:00:00]} Nf6 {[%emt 0:00:05]} 2. c4 {[%emt 0:00:07]} e6 {[%emt 0:00:01]} 3. g3 {[%emt 0:00:24]} d5 {[%emt 0:00:24]} 4. Nf3 {[%emt 0:00:17]} dxc4 {[%emt 0:00:28]} 5. Bg2 {[%emt 0:01:36]} Bd7 {[%emt 0:00:22]} 6. Ne5 {[%emt 0:00:30]} Bc6 {[%emt 0:00:30]} 7. Nxc6 {[%emt 0:00:26]} Nxc6 {[%emt 0:00:15][%cal Bb8c6,Bc6e5,Be5d3][%mdl 32]} 8. O-O {[%emt 0:06:07]} Qd7 {[%emt 0:01:28]} ({Much weaker is} 8... Nxd4 9. Bxb7 Rb8 10. Bg2 $16) 9. e3 {[%emt 0:01:06]} Rd8 {[%emt 0:01:58]} 10. Qe2 {[%emt 0:15:39]} e5 {[%emt 0:02:31] The position is equal.} 11. Nc3 {[%emt 0:03:22][%cal Bb1c3,Bc3e2,Be2d4][%mdl 32]} Be7 {[%emt 0:08:09]} 12. dxe5 {[%emt 0:04:25]} Nxe5 {[%emt 0:01:16]} 13. Bxb7 {[%emt 0:00:39][%cal Bg2b7,Bb7a6,Ba6c4][%mdl 32]} c6 {[%emt 0:14:12]} 14. Ba6 {[%emt 0:00:21]} Qd3 {[%emt 0:12:24]} (14... Qe6 $11) 15. f4 $1 $14 {[%emt 0:05:08]} Qxe2 {[%emt 0:01:47]} 16. Nxe2 {[%emt 0:00:02]} Nd3 {[%emt 0:01:04]} 17. Nd4 {[%emt 0:05:05]} Bc5 {[%emt 0:14:08]} 18. Bxc4 {[%emt 0:03:38]} Bxd4 {[%emt 0:04:20]} 19. exd4 {[%emt 0:01:52]} Rxd4 {[%emt 0:01:59]} 20. b3 $36 {[%emt 0:03:00][%mdl 2048] White has good play.} Nxc1 {[%emt 0:02:13]} 21. Raxc1 {[%emt 0:00:23]} O-O {[%emt 0:01:02]} 22. Ba6 {[%emt 0:01:56]} Rd2 {[%emt 0:07:02]} 23. Rf2 {[%emt 0:01:51]} ({Resist} 23. Rxc6 Rxa2 24. Re1 Nd5 $11) 23... Rfd8 {[%emt 0:01:50]} 24. Rxc6 {[%emt 0:01:36] [#] Black must now prevent Rxd2.} Rxf2 {[%emt 0:04:20]} 25. Kxf2 $16 {[%emt 0:00:02][%mdl 4096] Endgame. Rc7 is the strong threat. KRB-KRN} Ng4+ {[%emt 0:04:20]} (25... Kf8 $16 {was necessary.} 26. Kf3 h5) 26. Ke2 $18 {[%emt 0:02:07]} Re8+ {[%emt 0:00:49]} 27. Kd3 {[%emt 0:02:40] Strongly threatening Rc7.} Rd8+ {[%emt 0:04:04]} (27... Kf8 $16 28. Rc2 h6) 28. Kc3 {[%emt 0:02:04]} Nxh2 {[%emt 0:00:33]} (28... Nf6 $142 29. Bc4 h5) 29. Rc7 {[%emt 0:00:38]} Nf3 {[%emt 0:06:06]} 30. Rxa7 {[%emt 0:01:26]} g6 {[%emt 0:01:59]} (30... g5 {might work better.} 31. Bc4 Nd2 32. Bxf7+ (32. Rxf7 Nxc4 33. Rf5 Nd6 $11) 32... Kh8 33. fxg5 Ne4+ 34. Kc2 Nxg5) 31. Bc4 {[%emt 0:00:26]} Nd2 {[%emt 0:00:27]} 32. Bd3 {[%emt 0:01:21]} Nf3 {[%emt 0:00:09]} 33. a4 {[%emt 0:00:17][%cal Ba2a4,Ba4a5][%mdl 32]} g5 {[%emt 0:03:31]} 34. fxg5 {[%emt 0:01:03]} Ne5 {[%emt 0:04:31]} 35. Be4 {[%emt 0:00:39]} Rd1 {[%emt 0:00:28]} 36. a5 {[%emt 0:00:18]} Nd7 {[%emt 0:05:00]} 37. b4 {[%emt 0:01:48][%cal Bb3b4,Bb4b5,Bb5b6,Bb6b7][%mdl 32]} Nf8 {[%emt 0:00:42]} 38. b5 {[%emt 0:00:29]} Ne6 {[%emt 0:00:21]} 39. b6 {[%emt 0:00:22]} Nc5 {[%emt 0:02:25]} 40. b7 {[%emt 0:00:18]} Rc1+ {[%emt 0:00:41]} 41. Kb2 {[%emt 0:00:18] Weighted Error Value: White=0.04 (flawless) /Black=0.31.  Mistake:       	---       	Black=5      Inaccurate:     	White=1     	Black=2      OK:         	White=18    	Black=7      Best:        	White=1     	Black=3      Strong:       	White=1     	---} 1-0

[Event "13th Palmanova Festival A 2024"]
[Site "Palmanova"]
[Date "2024.12.27"]
[Round "1.2"]
[White "Candian, Lorenzo"]
[Black "Stankovic, Milos"]
[Result "1/2-1/2"]
[ECO "C48"]
[WhiteElo "2208"]
[BlackElo "2462"]
[Annotator "TA"]
[PlyCount "21"]
[EventDate "2024.12.27"]
[EventCountry "ITA"]
[SourceTitle "playchess.com"]
[Source "ChessBase"]
[SourceQuality "1"]
[TimeControl "6000+30"]

{[%evp 9,21,-2,54,45,48,56,54,54,44,59,55,39,49,45]} 1. e4 {[%emt 0:03:03]} e5 {[%emt 0:00:16]} 2. Nf3 {[%emt 0:00:05]} Nc6 {[%emt 0:00:31]} 3. Nc3 {[%emt 0:00:23]} Nf6 {[%emt 0:00:31][%cal Bg8f6,Bf6e4,Be4c5][%mdl 32]} 4. Bb5 {[%emt 0:00:29]} Bc5 {[%emt 0:01:29]} 5. Nxe5 {[%emt 0:15:08]} Nd4 {[%emt 0:06:38]} ({Better is} 5... Nxe5 $11 6. d4 Bd6) 6. Nd3 {[%emt 1:24:22]} Nxb5 {[%emt 0:20:22]} 7. Nxb5 {[%emt 0:00:00]} Nxe4 {[%emt 0:15:24]} 8. Nxc5 {[%emt 0:00:00]} ({Don't play} 8. Qe2 O-O 9. f3 (9. Qxe4 Re8 $17) 9... Ng3 (9... Qh4+ 10. Kd1 $11) 10. hxg3 Re8 $11) 8... Nxc5 {[%emt 0:03:41]} 9. d4 {[%emt 0:00:00]} Qe7+ {[%emt 0:28:56]} 10. Qe2 {[%emt 0:00:00] Active counter play!} Qxe2+ {[%emt 0:02:06]} 11. Kxe2 {[%emt 0:00:00]} 1/2-1/2

[Event "13th Palmanova Festival A 2024"]
[Site "Palmanova"]
[Date "2024.12.27"]
[Round "1.4"]
[White "Hofstadler, Mario"]
[Black "Di Benedetto, Edoardo"]
[Result "1/2-1/2"]
[ECO "E04"]
[WhiteElo "2203"]
[BlackElo "2411"]
[Annotator "TA"]
[PlyCount "146"]
[EventDate "2024.12.27"]
[EventCountry "ITA"]
[SourceTitle "playchess.com"]
[Source "ChessBase"]
[SourceQuality "1"]
[TimeControl "6000+30"]

{[%evp 14,146,57,52,47,18,14,14,6,0,0,0,25,0,20,0,0,0,0,-85,-90,-101,-58,-46,-46,-52,-56,-63,-63,-63,-49,-49,-44,-63,-63,-66,-66,-66,-66,-66,-60,-283,-66,-66,-66,-66,-66,-66,-66,-66,-66,-66,-66,-66,-66,-66,-66,-66,-44,-44,-44,-44,-44,-44,-44,-44,-44,-44,-44,-44,-44,-44,-44,-44,-44,-44,-28,-28,-28,-28,-28,-28,-28,-28,-28,-28,-28,-28,-28,-28,-28,-28,-28,-28,-28,-28,-28,-28,-8,-8,-8,-8,-8,-8,-63,-95,-60,-95,-95,-95,-8,-8,-8,-95,-95,-95,-95,-95,-95,-95,-95,-95,0,0,0,0,0,0,0,0,0,0,0,0,0]} 1. d4 {[%emt 0:00:53]} d5 {[%emt 0:00:14][%cal Bd7d5,Bd5c4][%mdl 32]} 2. Nf3 {[%emt 0:00:48]} Nf6 {[%emt 0:00:06]} 3. c4 {[%emt 0:00:46]} e6 {[%emt 0:00:10]} 4. g3 {[%emt 0:02:48]} dxc4 {[%emt 0:00:54]} 5. Bg2 {[%emt 0:00:36]} a6 {[%emt 0:00:48]} 6. O-O {[%emt 0:02:07]} Nc6 {[%emt 0:00:31]} 7. e3 {[%emt 0:05:50]} Rb8 {[%emt 0:00:26]} 8. Nfd2 {[%emt 0:01:48]} e5 {[%emt 0:00:22]} 9. Nxc4 {[%emt 0:06:41] Threatens to win with Bxc6+.} (9. Bxc6+ {feels hotter.} bxc6 10. dxe5 Ng4 11. Nxc4 Be6 12. Nbd2) 9... exd4 {[%emt 0:01:57]} 10. Bxc6+ {[%emt 0:09:45]} bxc6 {[%emt 0:00:06]} 11. Qxd4 {[%emt 0:00:13]} Qxd4 {[%emt 0:05:12]} 12. exd4 {[%emt 0:03:12]} Be6 {[%emt 0:00:06]} 13. b3 {[%emt 0:27:43]} c5 {[%emt 0:00:49]} 14. dxc5 {[%emt 0:03:33]} Bxc4 {[%emt 0:10:01]} 15. bxc4 {[%emt 0:00:34]} Bxc5 {[%emt 0:00:25]} 16. Be3 {[%emt 0:15:41] Wards off Bd4} (16. Nd2 $11) 16... Bxe3 $17 {[%emt 0:00:29]} 17. fxe3 {[%emt 0:00:16]} O-O {[%emt 0:01:59]} 18. Nc3 {[%emt 0:02:32]} Rfe8 {[%emt 0:05:28]} 19. Nd5 {[%emt 0:07:06]} Nxd5 {[%emt 0:00:20]} 20. cxd5 {[%emt 0:00:05]} Rxe3 $15 {[%emt 0:00:18][%mdl 4096] Endgame KRR-KRR. Black is a pawn up.} 21. Rac1 {[%emt 0:00:17]} Re7 {[%emt 0:00:27]} 22. Rc6 {[%emt 0:02:55]} Rd7 {[%emt 0:00:17]} 23. Rxa6 {[%emt 0:08:40]} Rxd5 {[%emt 0:00:07]} 24. Rc6 {[%emt 0:03:20]} Rb7 {[%emt 0:00:36]} 25. Rfc1 {[%emt 0:01:20]} h5 {[%emt 0:02:33]} 26. a4 {[%emt 0:01:27]} Rd2 {[%emt 0:00:37] Strongly threatening ...Rbb2.} 27. R1c2 $2 {[%emt 0:00:34]} (27. R6c2 $1 $15 Rxc2 28. Rxc2) 27... Rxc2 $2 {[%emt 0:00:10]} (27... Rb1+ $19 28. Rc1 Rbb2) 28. Rxc2 $19 {[%emt 0:00:06] KR-KR. Black is a pawn up.} Ra7 {[%emt 0:00:10]} 29. Rc5 {[%emt 0:01:21]} Rxa4 {[%emt 0:00:48]} 30. Rxc7 {[%emt 0:01:52]} Ra2 {[%emt 0:00:02]} 31. Rc5 {[%emt 0:00:33]} g6 {[%emt 0:00:08]} 32. Rb5 {[%emt 0:00:05]} Kg7 {[%emt 0:00:11]} 33. Rc5 {[%emt 0:00:11]} Kf6 {[%emt 0:00:18]} 34. h4 {[%emt 0:01:17]} Ke6 {[%emt 0:00:19]} 35. Rb5 {[%emt 0:00:10]} f6 {[%emt 0:00:09]} 36. Rc5 {[%emt 0:00:26]} Rd2 {[%emt 0:00:06]} 37. Rb5 {[%emt 0:00:07]} Rd5 {[%emt 0:00:15]} 38. Rb4 {[%emt 0:01:10]} Kf5 {[%emt 0:02:15]} 39. Kf2 {[%emt 0:00:32]} Ke5 {[%emt 0:02:23]} 40. Kf3 {[%emt 0:00:24]} Rd3+ {[%emt 0:00:28]} 41. Kf2 {[%emt 0:00:38]} Rd4 {[%emt 0:00:08]} 42. Rb6 {[%emt 0:00:00]} Rc4 {[%emt 0:00:00]} 43. Ra6 {[%emt 0:00:00]} Rc5 {[%emt 0:00:00]} 44. Ra4 {[%emt 0:00:00]} g5 {[%emt 0:00:00]} 45. hxg5 {[%emt 0:00:00]} fxg5 {[%emt 0:00:00]} 46. Rb4 {[%emt 0:00:00]} Rc2+ {[%emt 0:00:00]} 47. Kf3 {[%emt 0:00:00]} g4+ {[%emt 0:00:00]} 48. Ke3 {[%emt 0:00:00]} Rc3+ {[%emt 0:00:00]} 49. Kf2 {[%emt 0:00:00]} Rf3+ {[%emt 0:00:00]} 50. Kg2 {[%emt 0:00:00]} Rd3 {[%emt 0:00:00]} 51. Rb5+ {[%emt 0:00:00]} Rd5 {[%emt 0:00:00]} 52. Rb4 {[%emt 0:00:00]} Kd6 {[%emt 0:00:00]} 53. Ra4 {[%emt 0:00:00]} Rd2+ {[%emt 0:00:00]} 54. Kg1 {[%emt 0:00:00]} Ke5 {[%emt 0:00:00]} 55. Ra5+ {[%emt 0:00:00]} Ke4 {[%emt 0:00:00]} 56. Rxh5 {[%emt 0:00:00]} Kf3 {[%emt 0:00:00]} 57. Rf5+ {[%emt 0:00:00]} Kxg3 {[%emt 0:00:00]} 58. Rf1 {[%emt 0:00:00] Inhibits Rd1.} Rg2+ {[%emt 0:00:00]} (58... Ra2 $11) 59. Kh1 $17 {[%emt 0:00:00][%cal Of1f3]} Rb2 {[%emt 0:00:00]} 60. Kg1 {[%emt 0:00:00]} Ra2 {[%emt 0:00:00]} 61. Rb1 {[%emt 0:00:00]} Rg2+ {[%emt 0:00:00]} (61... Ra3 $17) 62. Kh1 $11 {[%emt 0:00:00] White threatens Rb3+ and mate.} Re2 {[%emt 0:00:00]} 63. Kg1 {[%emt 0:00:00]} (63. Rb3+ $11 {remains equal.} Kh4 64. Rc3) 63... Kh3 $17 {[%emt 0:00:00]} 64. Rb3+ {[%emt 0:00:00]} g3 {[%emt 0:00:00]} 65. Rb1 {[%emt 0:00:00] Dodges Re1+} Ra2 {[%emt 0:00:00]} 66. Rc1 {[%emt 0:00:00]} Ra3 {[%emt 0:00:00]} 67. Rb1 {[%emt 0:00:00]} g2 {[%emt 0:00:00]} ({Black should play} 67... Rd3 $17) 68. Rc1 {[%emt 0:00:00]} Rf3 {[%emt 0:00:00]} 69. Rb1 {[%emt 0:00:00]} Kg3 {[%emt 0:00:00]} 70. Rb3 {[%emt 0:00:00]} Kg4 {[%emt 0:00:00]} 71. Rb2 {[%emt 0:00:00]} Kh3 {[%emt 0:00:00][%csl Gg2][%cal Rf3f1]} 72. Rxg2 {[%emt 0:00:00]} Rg3 {[%emt 0:00:00]} 73. Rxg3+ {[%emt 0:00:00]} Kxg3 {[%emt 1:33:52]} 1/2-1/2

[Event "13th Palmanova Festival A 2024"]
[Site "Palmanova"]
[Date "2024.12.27"]
[Round "1.5"]
[White "Marn, Jan"]
[Black "Aarav A"]
[Result "1/2-1/2"]
[ECO "D13"]
[WhiteElo "2400"]
[BlackElo "2186"]
[Annotator "TA"]
[PlyCount "97"]
[EventDate "2024.12.27"]
[EventCountry "ITA"]
[SourceTitle "playchess.com"]
[Source "ChessBase"]
[SourceQuality "1"]
[TimeControl "6000+30"]

{[%evp 23,97,24,22,26,23,2,7,0,0,0,17,10,46,34,49,58,59,54,63,67,56,41,39,24,68,68,68,68,71,58,72,8,10,10,16,0,0,0,0,0,0,0,0,0,0,0,0,0,0,0,0,0,0,0,0,0,15,0,0,0,0,0,0,0,20,0,20,0,0,0,0,0,0,0,0,0]} 1. d4 {[%emt 0:00:06]} d5 {[%emt 0:00:14]} 2. c4 {[%emt 0:00:12]} c6 {[%emt 0:00:07]} 3. Nc3 {[%emt 0:00:06]} Nf6 {[%emt 0:00:09]} 4. cxd5 {[%emt 0:00:06]} cxd5 {[%emt 0:00:08]} 5. Bf4 {[%emt 0:00:06]} Nc6 {[%emt 0:00:06]} 6. e3 {[%emt 0:00:06]} e6 {[%emt 0:00:05]} 7. Nf3 {[%emt 0:03:32]} Bd6 {[%emt 0:00:48]} 8. Bxd6 {[%emt 0:00:11]} Qxd6 {[%emt 0:00:05]} 9. Bd3 {[%emt 0:01:12]} O-O {[%emt 0:01:10]} 10. O-O {[%emt 0:00:07]} Bd7 {[%emt 0:01:45]} 11. Rc1 {[%emt 0:08:06]} Rac8 {[%emt 0:02:43]} 12. a3 {[%emt 0:04:11]} Rfd8 {[%emt 0:11:03]} 13. h3 {[%emt 0:25:59]} Be8 {[%emt 0:01:17]} 14. b4 {[%emt 0:06:29][%cal Bb2b4,Bb4b5][%mdl 32]} a5 {[%emt 0:03:25]} 15. b5 {[%emt 0:01:03]} Ne7 {[%emt 0:00:11]} 16. Qb3 {[%emt 0:00:30]} Ng6 {[%emt 0:00:25]} 17. Ne2 {[%emt 0:12:35]} Bd7 {[%emt 0:04:49][%cal Be8d7,Bd7c8,Bc8b7][%mdl 32]} 18. Qb2 {[%emt 0:44:53]} Rxc1 {[%emt 0:02:28]} 19. Rxc1 {[%emt 0:00:00]} b6 {[%emt 0:00:18]} 20. Ne5 {[%emt 0:00:00]} Rc8 {[%emt 0:01:48]} 21. Rxc8+ {[%emt 0:00:00]} Bxc8 {[%emt 0:00:09]} 22. Qc3 {[%emt 0:00:00]} Bb7 {[%emt 0:02:15]} 23. f3 {[%emt 0:00:00]} Nd7 {[%emt 0:02:23]} 24. Bxg6 {[%emt 0:00:00]} hxg6 {[%emt 0:00:21][%cal Bh7g6,Bg6g5][%mdl 32]} 25. Nxd7 {[%emt 0:00:00]} Qxd7 $14 {[%emt 0:00:08][%mdl 4096] Endgame KQB-KQN} 26. a4 {[%emt 0:00:00]} g5 {[%emt 0:04:29]} 27. Nc1 {[%emt 0:00:00]} (27. f4 $16) 27... Qc8 $11 {[%emt 0:00:33]} 28. Qxc8+ {[%emt 0:00:00]} Bxc8 {[%emt 0:00:07] KB-KN} 29. Kf2 {[%emt 0:00:00]} f6 {[%emt 0:01:02]} 30. f4 {[%emt 0:00:00]} gxf4 {[%emt 0:00:12]} 31. exf4 {[%emt 0:00:00]} Bd7 {[%emt 0:00:58]} 32. Ke3 {[%emt 0:05:26]} Be8 {[%emt 0:01:00]} 33. Nb3 {[%emt 0:01:19]} Kf8 {[%emt 0:00:29]} 34. g3 {[%emt 0:00:38]} Ke7 {[%emt 0:00:09]} 35. Nc1 {[%emt 0:00:04]} Bg6 {[%emt 0:00:08]} 36. Nd3 {[%emt 0:00:53]} Bxd3 {[%emt 0:01:45]} 37. Kxd3 {[%emt 0:00:05] KP-KP} f5 {[%emt 0:00:09]} 38. Ke3 {[%emt 0:00:20]} Kf6 {[%emt 0:00:07]} 39. Kf3 {[%emt 0:00:49]} Kg6 {[%emt 0:01:16]} 40. Kg2 {[%emt 0:00:34]} Kh5 {[%emt 0:00:17]} 41. Kf2 {[%emt 0:00:13]} Kh6 {[%emt 0:01:01]} 42. Kg2 {[%emt 0:00:00]} Kg6 {[%emt 0:00:00]} 43. g4 {[%emt 0:00:00]} Kh6 {[%emt 0:00:00]} 44. Kg3 {[%emt 0:00:00]} Kg6 {[%emt 0:00:00]} 45. h4 {[%emt 0:00:00]} Kh6 {[%emt 0:00:00]} 46. h5 {[%emt 0:00:00]} fxg4 {[%emt 0:00:00]} 47. Kxg4 {[%emt 0:00:00]} g6 {[%emt 0:00:00]} 48. hxg6 {[%emt 0:00:00]} Kxg6 {[%emt 0:00:00]} 49. Kg3 $1 {[%emt 0:00:00]} 1/2-1/2

[Event "13th Palmanova Festival A 2024"]
[Site "Palmanova"]
[Date "2024.12.27"]
[Round "1.6"]
[White "Zoncu, Roberto Alessio"]
[Black "Hovhannisyan, Mher"]
[Result "1/2-1/2"]
[ECO "C00"]
[WhiteElo "2165"]
[BlackElo "2397"]
[Annotator "TA"]
[PlyCount "40"]
[EventDate "2024.12.27"]
[EventCountry "ITA"]
[SourceTitle "playchess.com"]
[Source "ChessBase"]
[SourceQuality "1"]
[TimeControl "6000+30"]

{[%evp 9,40,-18,4,-2,6,0,0,-2,0,-16,3,-15,-7,-9,-16,-5,0,0,-4,-32,18,12,11,16,20,34,19,4,8,4,38,7,0]} 1. e4 {[%emt 0:00:05]} e6 {[%emt 0:00:06]} 2. d3 {[%emt 0:00:47]} d5 {[%emt 0:01:03]} 3. Nd2 {[%emt 0:00:10]} Nf6 {[%emt 0:02:00]} 4. Ngf3 {[%emt 0:01:06]} a5 {[%emt 0:01:29][%cal Ba7a5,Ba5a4,Ba4a3][%mdl 32]} 5. g3 {[%emt 0:08:04]} a4 {[%emt 0:00:30]} 6. Bg2 {[%emt 0:03:06]} a3 {[%emt 0:01:33]} 7. exd5 {[%emt 0:05:29]} exd5 {[%emt 0:02:43]} 8. O-O {[%emt 0:02:01]} Be7 {[%emt 0:03:23]} 9. Nb3 {[%emt 0:06:08]} O-O {[%emt 0:01:23]} 10. bxa3 {[%emt 0:08:47]} Bxa3 {[%emt 0:00:25]} 11. Bxa3 {[%emt 0:00:21]} Rxa3 {[%emt 0:00:04]} 12. Qc1 {[%emt 0:01:50]} Qd6 {[%emt 0:03:30]} 13. c4 {[%emt 0:07:35]} dxc4 {[%emt 0:10:43]} 14. dxc4 {[%emt 0:00:11]} Qa6 {[%emt 0:07:27]} ({Better is} 14... Ra4 $15) 15. Qf4 $11 {[%emt 0:05:44]} Nc6 {[%emt 0:29:03]} 16. Qxc7 {[%emt 0:06:32]} Rxa2 {[%emt 0:27:00]} 17. Rxa2 {[%emt 0:11:56]} Qxa2 {[%emt 0:00:06]} 18. Nfd4 {[%emt 0:00:48]} (18. Nfd2 $5) 18... Nxd4 {[%emt 0:05:04]} 19. Nxd4 {[%emt 0:00:10]} b6 {[%emt 0:05:55]} 20. Qxb6 {[%emt 0:20:20]} Qxc4 {[%emt 0:00:40] A rather calm draw.   Weighted Error Value: White=0.08 (flawless) /Black=0.12 (very precise) .  Mistake:       	---       	Black=1      Inaccurate:     	White=2     	Black=1      OK:         	White=4     	Black=2      Best:        	---       	Black=1} 1/2-1/2

[Event "13th Palmanova Festival A 2024"]
[Site "Palmanova"]
[Date "2024.12.27"]
[Round "1.7"]
[White "Domalchuk-Jonasson, Aleksandr"]
[Black "Turel, Tugrul"]
[Result "1-0"]
[ECO "A22"]
[WhiteElo "2377"]
[BlackElo "2164"]
[Annotator "TA"]
[PlyCount "25"]
[EventDate "2024.12.27"]
[EventCountry "ITA"]
[SourceTitle "playchess.com"]
[Source "ChessBase"]
[SourceQuality "1"]
[TimeControl "6000+30"]

{[%evp 9,25,89,110,123,196,192,303,285,324,313,577,578,807,823,828,812,773,735]} 1. c4 {[%emt 0:00:03]} e5 {[%emt 0:01:02][%cal Be7e5,Be5e4][%mdl 32]} 2. Nc3 {[%emt 0:00:11]} Nf6 {[%emt 0:02:08]} 3. Nf3 {[%emt 0:00:08][%cal Bg1f3,Bf3g5,Bg5e4][%mdl 32]} e4 {[%emt 0:01:45]} 4. Ng5 {[%emt 0:00:08]} Qe7 {[%emt 0:02:10]} 5. Qc2 {[%emt 0:00:36]} d5 {[%emt 0:02:43]} 6. cxd5 {[%emt 0:00:06][%cal Rg5e4] White is more active.} (6. Nxd5 $2 Nxd5 7. cxd5 Qxg5 $19) 6... Bf5 {[%emt 0:00:07]} (6... Na6 $16) 7. f3 $18 {[%emt 0:04:23]} Nh5 {[%emt 0:14:43]} (7... c6 {is a better defense.}) 8. Ngxe4 {[%emt 0:05:21]} Qh4+ {[%emt 0:01:23]} 9. g3 {[%emt 0:01:53]} Nxg3 $2 {[%emt 0:00:17] [#]} (9... Qd8 10. d4 h6) 10. Qa4+ $1 {[%emt 0:00:16]} ({Not} 10. hxg3 Qxh1 $14) 10... b5 {[%emt 0:03:30] [#]} 11. Nd6+ $1 {[%emt 0:01:01][%mdl 512]} Bxd6 {[%emt 0:00:21]} 12. Qxh4 {[%emt 0:00:06]} Nxh1 {[%emt 0:00:05]} 13. Bg2 {[%emt 0:00:25]} 1-0

[Event "13th Palmanova Festival A 2024"]
[Site "Palmanova"]
[Date "2024.12.27"]
[Round "1.9"]
[White "Bettalli, Francesco"]
[Black "Jordan Martinez, Miguel"]
[Result "1-0"]
[ECO "C10"]
[WhiteElo "2359"]
[BlackElo "2123"]
[Annotator "ChessBase"]
[PlyCount "79"]
[EventDate "2024.12.27"]
[EventCountry "ITA"]
[SourceTitle "playchess.com"]
[Source "ChessBase"]
[SourceQuality "1"]
[TimeControl "6000+30"]

1. e4 {[%emt 0:00:27]} e6 {[%emt 0:00:04]} 2. d4 {[%emt 0:00:09]} d5 {[%emt 0:00:05]} 3. Nc3 {[%emt 0:00:10]} Be7 {[%emt 0:03:07]} 4. Bd3 {[%emt 0:14:47]} Nc6 {[%emt 0:07:47]} 5. Nf3 {[%emt 0:06:08]} Nb4 {[%emt 0:04:17]} 6. Be2 {[%emt 0:06:17]} Nf6 {[%emt 0:02:47]} 7. e5 {[%emt 0:03:53]} Ne4 {[%emt 0:03:54]} 8. O-O {[%emt 0:07:43]} Nc6 {[%emt 0:25:40]} 9. Bd3 {[%emt 0:03:57]} Nxc3 {[%emt 0:00:15]} 10. bxc3 {[%emt 0:00:03]} Na5 {[%emt 0:00:22]} 11. Nd2 {[%emt 0:10:09]} Bd7 {[%emt 0:08:40]} 12. Qg4 {[%emt 0:01:38]} g6 {[%emt 0:01:03]} 13. Nf3 {[%emt 0:00:28]} c5 {[%emt 0:03:29]} 14. Ng5 {[%emt 0:05:40]} c4 {[%emt 0:04:29]} 15. Be2 {[%emt 0:00:05]} h6 {[%emt 0:01:18]} 16. Nh3 {[%emt 0:03:47]} Ba4 {[%emt 0:03:25]} 17. Bd1 {[%emt 0:00:21]} Nc6 {[%emt 0:04:35]} 18. Nf4 {[%emt 0:02:00]} Qd7 {[%emt 0:02:08]} 19. h4 {[%emt 0:01:54]} O-O-O {[%emt 0:09:31]} 20. h5 {[%emt 0:00:56]} g5 {[%emt 0:01:16]} 21. Nh3 {[%emt 0:00:16]} Rdg8 {[%emt 0:03:30]} 22. f4 {[%emt 0:03:15]} gxf4 {[%emt 0:00:17]} 23. Qxf4 {[%emt 0:00:02]} Rg7 {[%emt 0:02:06]} 24. Qf3 {[%emt 0:03:02]} Nd8 {[%emt 0:03:42]} 25. Bf4 {[%emt 0:03:13]} b5 {[%emt 0:01:17]} 26. Qe3 {[%emt 0:00:23]} Rhg8 {[%emt 0:00:29]} 27. g4 {[%emt 0:08:13]} Rxg4+ {[%emt 0:07:31]} 28. Bxg4 {[%emt 0:00:06]} Rxg4+ {[%emt 0:00:08]} 29. Kh2 {[%emt 0:00:14]} Bxc2 {[%emt 0:01:56]} 30. Bg3 {[%emt 0:03:18]} Bd3 {[%emt 0:03:30]} 31. Rg1 {[%emt 0:02:55]} Re4 {[%emt 0:02:00]} 32. Qxh6 {[%emt 0:00:26]} Bh4 {[%emt 0:00:31]} 33. Bxh4 {[%emt 0:02:57]} Rxh4 {[%emt 0:00:02]} 34. Qg5 {[%emt 0:00:10]} Re4 {[%emt 0:00:07]} 35. Nf4 {[%emt 0:01:08]} Qc7 {[%emt 0:00:31]} 36. h6 {[%emt 0:00:37]} f5 {[%emt 0:00:56]} 37. Rae1 {[%emt 0:01:37]} Rxe1 {[%emt 0:02:15]} 38. Rxe1 {[%emt 0:00:03]} b4 {[%emt 0:00:00]} 39. cxb4 {[%emt 0:01:38]} Qb6 {[%emt 0:00:00]} 40. Qe7 {[%emt 0:01:30]} 1-0